fUST/lending_fUST_20250826
["ID","MTS","AMOUNT","RATE_DAILY","PERIOD"]
[381449007,1756212640747,-151.0,0.00031784,7]
[381449010,1756212640756,-194.381975,0.00031784,7]
[381449013,1756212640766,-370000.0,0.00031784,2]
[381449016,1756212640775,-3257.01054389,0.0003179,2]
[381449019,1756212640787,-154.477443,0.000318,2]
[381449021,1756212640796,-151.0,0.000318,19]
[381449023,1756212640806,-16272.03,0.000318,2]
[381449025,1756212640815,-217.18350301,0.00031845,2]
[381449027,1756212640824,-160.0,0.00031845,2]
[381449029,1756212640833,-160.0,0.00031845,2]
[381449031,1756212640842,-160.0,0.00031845,2]
[381449033,1756212640852,-376.39720582,0.00031845,2]
[381449035,1756212640861,-160.0,0.00031845,2]
[381449037,1756212640871,-250.0,0.0003187,10]
[381449040,1756212640880,-375.108969,0.0003187,10]
[381449042,1756212640889,-780.37630257,0.0003188,14]
[381449044,1756212640899,-151.0,0.000319,20]
[381449046,1756212640908,-2366.17062432,0.000319,2]
[381449048,1756212640918,-154.477443,0.00031909,20]
[381449051,1756212640928,-160.0,0.00031913,2]
[381449053,1756212640939,-12704.43797926,0.00031914,2]
[381449054,1756212640948,-1812.38914778,0.00031986,17]
[381449056,1756212640958,-1188.21,0.0003199,3]
[381449058,1756212640967,-1603.08,0.0003199,3]
[381449060,1756212640977,-801.54,0.0003199,3]
[381449062,1756212640989,-400.77,0.0003199,3]
[381449064,1756212641001,-200.38,0.0003199,3]
[381449066,1756212641010,-601.17,0.0003199,3]
[381449068,1756212641020,-692.44,0.0003199,3]
[381449070,1756212641031,-768.95,0.0003199,3]
[381449073,1756212641041,-448797.55092343,0.00032,60]
[381449074,1756212641051,-151.0,0.00032,7]
[381449076,1756212641062,-151.0,0.00032,7]
[381449078,1756212641073,-151.0,0.00032,7]
[381449080,1756212641083,-151.0,0.00032,7]
[381449082,1756212641091,-151.0,0.00032,7]
[381449084,1756212641101,-151.0,0.00032,7]
[381449086,1756212641113,-151.0,0.00032,7]
[381449088,1756212641123,-151.0,0.00032,7]
[381449090,1756212641133,-151.0,0.00032,7]
[381449092,1756212641144,-151.0,0.00032,7]
[381449094,1756212641154,-151.0,0.00032,7]
[381449096,1756212641164,-151.0,0.00032,7]
[381449098,1756212641173,-151.0,0.00032,7]
[381449100,1756212641182,-151.0,0.00032,7]
[381449101,1756212641191,-151.0,0.00032,7]
[381449102,1756212641200,-156.93071,0.00032,7]
[381449103,1756212641210,-151.0,0.00032,7]
[381449104,1756212641219,-151.0,0.00032,7]
[381449105,1756212641229,-151.0,0.00032,7]
[381449106,1756212641238,-151.0,0.00032,7]
[381449108,1756212641250,-151.0,0.00032,7]
[381449110,1756212641260,-151.0,0.00032,7]
[381449111,1756212641269,-151.0,0.00032,7]
[381449113,1756212641279,-151.0,0.00032,7]
[381449115,1756212641288,-151.0,0.00032,7]
[381449116,1756212641298,-151.0,0.00032,7]
[381449117,1756212641307,-243.942292,0.00032,7]
[381449118,1756212641316,-151.611321,0.00032,7]
[381449119,1756212641326,-151.0,0.00032,7]
[381449120,1756212641335,-151.0,0.00032,7]
[381449121,1756212641344,-151.0,0.00032,7]
[381449122,1756212641354,-151.0,0.00032,7]
[381449123,1756212641364,-151.0,0.00032,7]
[381449124,1756212641373,-151.0,0.00032,7]
[381449125,1756212641383,-151.0,0.00032,7]
[381449126,1756212641392,-151.0,0.00032,7]
[381449127,1756212641401,-151.0,0.00032,7]
[381449128,1756212641411,-151.0,0.00032,7]
[381449129,1756212641420,-151.0,0.00032,7]
[381449130,1756212641430,-151.0,0.00032,7]
[381449131,1756212641439,-160.69656,0.00032,7]
[381449132,1756212641448,-154.236402,0.00032,7]
[381449133,1756212641458,-151.0,0.00032,7]
[381449134,1756212641467,-151.0,0.00032,7]
[381449135,1756212641476,-249.337844,0.00032,7]
[381449136,1756212641485,-151.0,0.00032,7]
[381449137,1756212641494,-151.0,0.00032,7]
[381449138,1756212641504,-151.0,0.00032,7]
[381449139,1756212641513,-151.0,0.00032,7]
[381449140,1756212641522,-151.893212,0.00032,7]
[381449141,1756212641531,-151.0,0.00032,7]
[381449142,1756212641541,-151.0,0.00032,7]
[381449143,1756212641550,-151.0,0.00032,7]
[381449144,1756212641566,-151.0,0.00032,7]
[381449145,1756212641579,-151.0,0.00032,7]
[381449146,1756212641591,-185.79721,0.00032,7]
[381449147,1756212641604,-185.79721,0.00032,7]
[381449148,1756212641614,-185.79721,0.00032,7]
[381449149,1756212641626,-185.79721,0.00032,7]
[381449150,1756212641638,-151.0,0.00032,7]
[381449151,1756212641650,-151.0,0.00032,7]
[381449152,1756212641663,-151.0,0.00032,7]
[381449153,1756212641676,-151.0,0.00032,7]
[381449154,1756212641688,-151.0,0.00032,7]
[381449155,1756212641700,-151.413158,0.00032,7]
[381449156,1756212641713,-157.694924,0.00032,7]
[381449157,1756212641726,-157.694924,0.00032,7]
[381449158,1756212641737,-157.694924,0.00032,7]
[381449159,1756212641750,-157.694924,0.00032,7]
[381449160,1756212641762,-151.0,0.00032,7]
[381449161,1756212641774,-151.0,0.00032,7]
[381449162,1756212641787,-194.381975,0.00032,7]
[381449163,1756212641799,-194.381975,0.00032,7]
[381449164,1756212641810,-194.381975,0.00032,7]
[381449165,1756212641823,-194.381975,0.00032,7]
[381449166,1756212641833,-151.0,0.00032,7]
[381449167,1756212641844,-792.58905785,0.00032068,5]
[381449168,1756212641856,-1148.24957546,0.00032068,5]
[381449169,1756212641868,-1500.0,0.00032068,5]
[381449170,1756212641880,-280.0,0.00032083,2]
[381449171,1756212641892,-154.477443,0.00032149,2]
[381449172,1756212641905,-500.0,0.00032273,5]
[381449173,1756212641918,-500.0,0.00032273,5]
[381449174,1756212641931,-500.0,0.00032273,5]
[381449175,1756212641944,-511.0659137,0.00032273,5]
[381449176,1756212641958,-500.0,0.00032273,5]
[381449177,1756212641970,-500.0,0.00032273,5]
[381449178,1756212641981,-500.0,0.00032273,5]
[381449179,1756212641991,-500.0,0.00032273,5]
[381449180,1756212642006,-500.0,0.00032273,5]
[381449181,1756212642018,-500.0,0.00032273,5]
[381449182,1756212642032,-498.43472966,0.00032273,5]
[381449183,1756212642045,-500.0,0.00032273,5]
[381449184,1756212642055,-500.0,0.00032273,5]
[381449185,1756212642067,-500.0,0.00032273,5]
[381449186,1756212642082,-529.59348212,0.00032273,5]
[381449187,1756212642092,-500.0,0.00032273,5]
[381449188,1756212642105,-500.0,0.00032273,5]
[381449189,1756212642117,-500.0,0.00032273,5]
[381449190,1756212642128,-500.0,0.00032273,5]
[381449191,1756212642138,-500.0,0.00032273,5]
[381449192,1756212642152,-3678.03,0.000323,7]
[381449193,1756212642163,-93702.96,0.000323,7]
[381449194,1756212642175,-1000.0,0.00032321,5]
[381449195,1756212642186,-1000.0,0.00032321,5]
[381449196,1756212642197,-1000.0,0.00032321,5]
[381449197,1756212642209,-575.52273477,0.00032321,5]
[381449198,1756212642220,-1000.0,0.00032321,5]
[381449199,1756212642232,-505.62210143,0.00032321,5]
[381449200,1756212642245,-1000.0,0.00032321,5]
[381449201,1756212642258,-960.1691623,0.00032321,5]
[381449202,1756212642270,-1000.0,0.00032321,5]
[381449203,1756212642283,-778.65759755,0.00032321,5]
[381449204,1756212642299,-1000.0,0.00032321,5]
[381449205,1756212642310,-1000.0,0.00032321,5]
[381449206,1756212642322,-500.0,0.00032321,5]
[381449207,1756212642333,-1000.0,0.00032321,5]
[381449208,1756212642345,-1000.0,0.00032321,5]
[381449209,1756212642357,-500.0,0.00032321,5]
[381449210,1756212642369,-1000.0,0.00032321,2]
[381449211,1756212642380,-1000.0,0.00032321,5]
[381449212,1756212642391,-1000.0,0.00032321,5]
[381449213,1756212642403,-1000.0,0.00032321,5]
[381449214,1756212642414,-363.75004703,0.00032472,113]
[381449215,1756212642425,-154.477443,0.00032499,2]
[381449216,1756212642436,-6755.4,0.000326,7]
[381449217,1756212642448,-1649.0,0.00032603,3]
[381449218,1756212642459,-2000.0,0.00032616,5]
[381449219,1756212642470,-11906.92627493,0.00032736,2]
[381449220,1756212642482,-502.96478376,0.00032821,5]
[381449221,1756212642493,-1000.0,0.00032821,5]
[381449222,1756212642507,-1000.0,0.00032821,5]
[381449223,1756212642518,-456.84374954,0.00032821,5]
[381449224,1756212642529,-197.28024684,0.00032821,5]
[381449225,1756212642541,-1000.0,0.00032821,5]
[381449226,1756212642552,-500.0,0.00032821,5]
[381449227,1756212642563,-1000.0,0.00032821,5]
[381449228,1756212642575,-1000.0,0.00032821,5]
[381449229,1756212642586,-1000.0,0.00032821,5]
[381449230,1756212642597,-154.477443,0.00032848,2]
[381449231,1756212642609,-506.64297383,0.00032868,5]
[381449232,1756212642620,-1500.0,0.00032868,5]
[381449233,1756212642631,-1500.0,0.00032868,5]
[381449234,1756212642643,-892.26872128,0.00032868,5]
[381449235,1756212642654,-1006.2646628,0.00032868,5]
[381449236,1756212642665,-230.44620326,0.00032868,5]
[381449237,1756212642676,-343.64439473,0.00032868,5]
[381449238,1756212642687,-1500.0,0.00032868,5]
[381449239,1756212642698,-509.72641863,0.00032868,5]
[381449240,1756212642709,-1500.0,0.00032868,2]
[381449241,1756212642720,-500.0,0.00032868,5]
[381449242,1756212642732,-179.69451932,0.00033085,10]
[381449243,1756212642743,-2500.0,0.00033164,5]
[381449244,1756212642756,-154.477443,0.00033198,2]
[381449245,1756212642766,-173.267891,0.00033198,2]
[381449246,1756212642777,-16272.03,0.000332,14]
[381449247,1756212642788,-10967.62008935,0.00033268,2]
[381449248,1756212642799,-2376.42,0.0003336,3]
[381449249,1756212642811,-3206.16,0.0003336,3]
[381449250,1756212642822,-1603.08,0.0003336,3]
[381449251,1756212642833,-801.54,0.0003336,3]
[381449252,1756212642844,-400.76,0.0003336,3]
[381449253,1756212642855,-376.39720582,0.0003336,3]
[381449254,1756212642866,-160.0,0.0003336,3]
[381449255,1756212642877,-160.0,0.0003336,3]
[381449256,1756212642888,-217.18350301,0.0003336,3]
[381449257,1756212642899,-160.0,0.0003336,3]
[381449258,1756212642910,-500.0,0.00033368,5]
[381449259,1756212642921,-1500.0,0.00033368,5]
[381449260,1756212642933,-1500.0,0.00033368,5]
[381449261,1756212642944,-500.0,0.00033368,5]
[381449262,1756212642956,-292.14363601,0.00033416,5]
[381449263,1756212642967,-471.7674995,0.00033416,5]
[381449264,1756212642979,-2000.0,0.00033416,5]
[381449265,1756212642990,-2000.0,0.00033416,2]
[381449266,1756212643002,-500.0,0.00033556,5]
[381449267,1756212643013,-150.0,0.00033573,5]
[381449268,1756212643026,-27482.7117237,0.00033699,2]
[381449269,1756212643038,-194.381975,0.00033699,7]
[381449270,1756212643049,-194.381975,0.00033699,7]
[381449271,1756212643063,-194.381975,0.00033699,7]
[381449272,1756212643076,-194.381975,0.00033699,7]
[381449273,1756212643087,-151.0,0.00033699,7]
[381449274,1756212643099,-181.700434,0.00033702,2]
[381449275,1756212643111,-3000.0,0.00033712,5]
[381449276,1756212643123,-1812.38914778,0.00033712,21]
[381449277,1756212643136,-93702.96,0.000338,14]
[381449278,1756212643150,-151.0,0.000338,7]
[381449279,1756212643162,-151.0,0.000338,7]
[381449280,1756212643174,-157.694924,0.000338,7]
[381449282,1756212643186,-157.694924,0.000338,7]
[381449283,1756212643198,-157.694924,0.000338,7]
[381449284,1756212643210,-157.694924,0.000338,7]
[381449285,1756212643222,-587.0,0.00033847,2]
[381449286,1756212643235,-5000.0,0.00033896,4]
[381449288,1756212643246,-3678.03,0.000339,7]
[381449289,1756212643258,-1009.06738748,0.00033916,5]
[381449290,1756212643270,-2000.0,0.00033916,5]
[381449291,1756212643282,-2500.0,0.00033964,5]
[381449292,1756212643294,-284.86288847,0.00033964,2]
[381449293,1756212643305,-1000.0,0.00034104,5]
[381449294,1756212643316,-300.0,0.00034121,5]
[381449295,1756212643327,-2351.0,0.00034138,3]
[381449296,1756212643339,-3500.0,0.0003426,5]
[381449297,1756212643350,-829.18616281,0.00034288,2]
[381449298,1756212643361,-6755.4,0.000343,7]
[381449299,1756212643372,-151.0,0.000343,7]
[381449300,1756212643383,-151.0,0.000343,7]
[381449303,1756212643395,-151.0,0.000343,7]
[381449305,1756212643406,-151.0,0.000343,7]
[381449307,1756212643417,-151.0,0.000343,7]
[381449309,1756212643428,-151.0,0.000343,7]
[381449311,1756212643439,-151.0,0.000343,7]
[381449313,1756212643450,-151.0,0.000343,7]
[381449316,1756212643461,-185.79721,0.000343,7]
[381449318,1756212643472,-185.79721,0.000343,7]
[381449320,1756212643483,-185.79721,0.000343,7]
[381449322,1756212643494,-185.79721,0.000343,7]
[381449324,1756212643507,-154.477443,0.00034411,20]
[381449327,1756212643518,-2500.0,0.00034464,5]
[381449329,1756212643529,-250.0,0.0003448,2]
[381449331,1756212643540,-3000.0,0.00034512,5]
[381449333,1756212643551,-773.792321,0.00034521,120]
[381449335,1756212643562,-500.0,0.00034573,2]
[381449338,1756212643573,-503.26191234,0.00034573,5]
[381449340,1756212643584,-11906.92627493,0.00034602,2]
[381449342,1756212643595,-450.0,0.00034668,5]
[381449344,1756212643606,-16272.03,0.000347,14]
[381449346,1756212643617,-1488.21088667,0.00034808,5]
[381449348,1756212643628,-151.0,0.00035,7]
[381449351,1756212643639,-245.0,0.00035,7]
[381449353,1756212643650,-151.0,0.00035,7]
[381449355,1756212643660,-151.0,0.00035,7]
[381449357,1756212643671,-151.0,0.00035,7]
[381449359,1756212643682,-151.0,0.00035,7]
[381449362,1756212643692,-151.0,0.00035,7]
[381449364,1756212643703,-151.0,0.00035,7]
[381449366,1756212643714,-151.0,0.00035,7]
[381449368,1756212643726,-151.0,0.00035,7]
[381449370,1756212643737,-151.0,0.00035,7]
[381449372,1756212643750,-3000.0,0.00035012,5]
[381449375,1756212643762,-1246.73612045,0.0003506,5]
[381449377,1756212643774,-1085.37547107,0.00035121,2]
[381449379,1756212643785,-303.59259681,0.00035216,5]
[381449381,1756212643797,-93702.96,0.000353,14]
[381449383,1756212643809,-194.381975,0.000353,7]
[381449385,1756212643820,-194.381975,0.000353,7]
[381449388,1756212643832,-194.381975,0.000353,7]
[381449390,1756212643844,-194.381975,0.000353,7]
[381449392,1756212643856,-151.0,0.000353,7]
[381449394,1756212643869,-3678.03,0.000354,7]
[381449396,1756212643880,-1812.38914778,0.00035439,24]
[381449398,1756212643890,-438.39637823,0.00035529,2]
[381449401,1756212643901,-546.08317985,0.0003556,5]
[381449403,1756212643911,-6755.4,0.000356,7]
[381449405,1756212643922,-500.0,0.00035616,7]
[381449407,1756212643932,-500.0,0.00035616,7]
[381449409,1756212643942,-500.0,0.00035616,7]
[381449411,1756212643952,-500.0,0.00035616,7]
[381449446,1756212644280,-500.0,0.00035616,7]
[381449449,1756212644303,-500.0,0.00035616,7]
[381449452,1756212644318,-500.0,0.00035616,7]
[381449454,1756212644329,-500.0,0.00035616,7]
[381449456,1756212644339,-500.0,0.00035616,7]
[381449458,1756212644349,-500.0,0.00035616,7]
[381449460,1756212644360,-500.0,0.00035616,7]
[381449462,1756212644370,-222.74447867,0.00035616,7]
[381449464,1756212644380,-500.0,0.00035616,7]
[381449466,1756212644391,-500.0,0.00035616,7]
[381449468,1756212644401,-500.0,0.00035616,7]
[381449470,1756212644411,-500.0,0.00035616,7]
[381449472,1756212644421,-500.0,0.00035616,7]
[381449474,1756212644430,-500.0,0.00035616,7]
[381449475,1756212644440,-500.0,0.00035616,7]
[381449477,1756212644450,-500.0,0.00035616,7]
[381449479,1756212644460,-500.0,0.00035616,7]
[381449482,1756212644470,-499.99999999,0.00035616,7]
[381449484,1756212644480,-156.18850234,0.00035832,2]
[381449486,1756212644489,-151.0,0.00036,30]
[381449488,1756212644501,-151.0,0.00036,30]
[381449490,1756212644510,-16272.03,0.00036,14]
[381449492,1756212644520,-363.75004703,0.00036044,120]
[381449494,1756212644529,-601.0,0.00036405,2]
[381449495,1756212644539,-160.0,0.00036464,3]
[381449497,1756212644548,-1000.0,0.0003649,2]
[381449499,1756212644558,-151.0,0.0003649,2]
[381449501,1756212644568,-1000.0,0.0003649,2]
[381449503,1756212644578,-151.0,0.0003649,2]
[381449505,1756212644587,-1000.0,0.0003649,2]
[381449507,1756212644597,-151.0,0.0003649,2]
[381449509,1756212644606,-1000.0,0.0003649,2]
[381449512,1756212644616,-151.0,0.0003649,2]
[381449514,1756212644626,-1000.0,0.0003649,2]
[381449516,1756212644635,-151.0,0.0003649,2]
[381449518,1756212644645,-1000.0,0.0003649,2]
[381449519,1756212644654,-151.0,0.0003649,2]
[381449521,1756212644663,-152.256998,0.0003649,2]
[381449523,1756212644673,-1000.0,0.0003649,2]
[381449525,1756212644682,-1000.0,0.0003649,2]
[381449527,1756212644691,-1000.0,0.0003649,2]
[381449530,1756212644702,-1000.0,0.0003649,2]
[381449531,1756212644712,-823.0,0.00036514,2]
[381449533,1756212644722,-601.0,0.00036578,2]
[381449535,1756212644732,-154.477443,0.00036668,5]
[381449537,1756212644741,-154.477443,0.00036913,20]
[381449539,1756212644752,-3047.0,0.00036986,3]
[381449541,1756212644762,-1812.38914778,0.00037166,28]
[381449543,1756212644772,-405.57901354,0.00037173,2]
[381449545,1756212644782,-93702.96,0.000372,14]
[381449547,1756212644792,-157.694924,0.000372,30]
[381449549,1756212644801,-157.694924,0.000372,30]
[381449551,1756212644811,-157.694924,0.000372,30]
[381449553,1756212644821,-157.694924,0.000372,30]
[381449555,1756212644830,-601.0,0.00037564,2]
[381449557,1756212644840,-3678.03,0.000377,7]
[381449559,1756212644849,-284.16433675,0.00037798,120]
[381449561,1756212644859,-426.0,0.00037798,120]
[381449563,1756212644868,-151.0,0.000378,30]
[381449565,1756212644878,-151.0,0.000378,30]
[381449567,1756212644888,-151.857407,0.000378,30]
[381449569,1756212644898,-151.0,0.000378,15]
[381449571,1756212644907,-151.0,0.000378,15]
[381449573,1756212644917,-266.296,0.000378,30]
[381449575,1756212644926,-188.857046,0.000378,30]
[381449577,1756212644935,-151.0,0.000378,30]
[381449579,1756212644945,-151.0,0.000378,30]
[381449581,1756212644954,-151.0,0.000378,30]
[381449583,1756212644963,-151.0,0.000378,30]
[381449585,1756212644973,-151.0,0.000378,30]
[381449586,1756212644983,-151.0,0.000378,30]
[381449588,1756212644993,-6755.4,0.00038,7]
[381449590,1756212645003,-151.0,0.00038,30]
[381449592,1756212645014,-151.0,0.00038,30]
[381449594,1756212645024,-151.0,0.00038,30]
[381449596,1756212645033,-151.0,0.00038,30]
[381449598,1756212645043,-16272.03,0.00038,14]
[381449600,1756212645052,-151.0,0.00038,30]
[381449602,1756212645064,-151.0,0.00038,30]
[381449605,1756212645075,-151.0,0.00038,30]
[381449607,1756212645084,-2014.633146,0.00038,30]
[381449609,1756212645094,-185.79721,0.00038,30]
[381449610,1756212645105,-185.79721,0.00038,30]
[381449612,1756212645115,-185.79721,0.00038,30]
[381449614,1756212645124,-185.79721,0.00038,30]
[381449616,1756212645134,-160.0,0.00038,30]
[381449619,1756212645144,-217.18350301,0.00038,30]
[381449621,1756212645156,-160.0,0.00038,30]
[381449623,1756212645166,-160.0,0.00038,30]
[381449624,1756212645175,-154.477443,0.00038063,5]
[381449626,1756212645184,-181.700434,0.00038268,2]
[381449628,1756212645194,-1008.18,0.00038356,120]
[381449630,1756212645203,-301.93998937,0.00038356,120]
[381449632,1756212645212,-187.09935736,0.00038375,3]
[381449634,1756212645222,-3753.87776674,0.00038552,6]
[381449636,1756212645232,-163.0,0.000386,120]
[381449638,1756212645242,-166.0,0.00038746,120]
[381449640,1756212645252,-426.0,0.00038782,7]
[381449642,1756212645261,-988.79,0.00038791,2]
[381449644,1756212645270,-2159.389,0.00038791,2]
[381449646,1756212645280,-638.0,0.00038791,2]
[381449648,1756212645289,-1812.38914778,0.00038892,32]
[381449650,1756212645299,-93702.96,0.000389,14]
[381449652,1756212645308,-194.381975,0.000389,30]
[381449654,1756212645318,-194.381975,0.000389,30]
[381449656,1756212645327,-194.381975,0.000389,30]
[381449658,1756212645336,-194.381977,0.000389,30]
[381449660,1756212645346,-151.0,0.000389,30]
[381449662,1756212645355,-1008.18,0.00038904,120]
[381449664,1756212645365,-500.0,0.00038917,5]
[381449666,1756212645374,-500.0,0.00038917,5]
[381449668,1756212645383,-378.4820383,0.00038965,7]
[381449670,1756212645393,-167.6235471,0.00038977,2]
[381449672,1756212645402,-669.82369423,0.00038977,2]
[381449674,1756212645411,-596.80961439,0.00038977,2]
[381449676,1756212645421,-439.74617853,0.00038977,2]
[381449678,1756212645430,-1758.98471411,0.00038977,2]
[381449680,1756212645440,-472.79178955,0.00038977,2]
[381449682,1756212645449,-483.40964744,0.00038977,2]
[381449684,1756212645459,-1933.63858978,0.00038977,2]
[381449686,1756212645492,-4350.686827,0.00038977,2]
[381449688,1756212645503,-265.05036089,0.00038991,2]
[381449690,1756212645514,-1000.0,0.00039,120]
[381449692,1756212645523,-601.0,0.00039041,7]
[381449695,1756212645533,-154.477443,0.00039047,6]
[381449697,1756212645542,-151.0,0.000391,30]
[381449699,1756212645551,-151.0,0.000391,30]
[381449701,1756212645562,-151.0,0.000391,30]
[381449703,1756212645571,-151.0,0.000391,30]
[381449705,1756212645580,-151.0,0.000391,30]
[381449707,1756212645590,-151.0,0.000391,30]
[381449709,1756212645599,-151.0,0.000391,30]
[381449711,1756212645609,-1000.0,0.000391,120]
[381449713,1756212645618,-1000.0,0.000391,120]
[381449715,1756212645627,-463.661193,0.000391,120]
[381449717,1756212645637,-151.0,0.000391,30]
[381449719,1756212645647,-151.0,0.000391,30]
[381449721,1756212645656,-3953.75789114,0.00039146,2]
[381449723,1756212645666,-500.0,0.00039195,2]
[381449725,1756212645675,-500.0,0.00039195,2]
[381449727,1756212645684,-151.0,0.00039195,7]
[381449729,1756212645693,-151.0,0.00039195,7]
[381449731,1756212645703,-151.0,0.00039195,7]
[381449733,1756212645712,-500.0,0.00039195,7]
[381449735,1756212645721,-500.0,0.00039195,7]
[381449737,1756212645730,-500.0,0.00039195,7]
[381449739,1756212645740,-151.0,0.00039195,7]
[381449741,1756212645749,-151.0,0.00039195,7]
[381449743,1756212645759,-151.0,0.00039195,7]
[381449745,1756212645770,-151.95767776,0.00039195,7]
[381449747,1756212645779,-151.0,0.00039195,7]
[381449749,1756212645789,-151.0,0.00039195,7]
[381449751,1756212645798,-500.0,0.00039195,7]
[381449752,1756212645807,-500.0,0.00039195,7]
[381449754,1756212645817,-151.58853822,0.00039195,7]
[381449756,1756212645826,-500.0,0.00039195,7]
[381449758,1756212645834,-151.0,0.00039195,7]
[381449760,1756212645844,-151.0,0.00039195,7]
[381449762,1756212645853,-151.0,0.00039195,7]
[381449764,1756212645863,-151.0,0.00039195,2]
[381449767,1756212645872,-151.0,0.00039195,7]
[381449768,1756212645881,-151.0,0.00039195,7]
[381449770,1756212645891,-151.0,0.00039195,7]
[381449773,1756212645900,-151.0,0.00039195,7]
[381449774,1756212645910,-914.0,0.00039195,2]
[381449776,1756212645919,-199.0,0.000392,120]
[381449778,1756212645928,-3678.03,0.000392,7]
[381449780,1756212645938,-500.0,0.00039262,2]
[381449782,1756212645947,-500.0,0.00039262,5]
[381449784,1756212645957,-45169.3242689,0.00039283,2]
[381449786,1756212645967,-151.0,0.00039283,30]
[381449788,1756212645977,-151.0,0.00039283,30]
[381449790,1756212645987,-151.0,0.00039283,30]
[381449792,1756212646000,-151.0,0.00039283,30]
[381449794,1756212646014,-153.500027,0.00039283,14]
[381449797,1756212646025,-151.0,0.00039283,30]
[381449800,1756212646036,-151.0,0.00039283,30]
[381449803,1756212646047,-151.0,0.00039283,30]
[381449806,1756212646058,-151.0,0.00039283,30]
[381449807,1756212646068,-6269.2019639,0.00039283,2]
[381449810,1756212646081,-49302.1733208,0.00039283,2]
[381449811,1756212646092,-1000.0,0.00039289,2]
[381449813,1756212646101,-1000.0,0.00039289,2]
[381449816,1756212646111,-1000.0,0.00039289,2]
[381449818,1756212646122,-1000.0,0.00039289,2]
[381449820,1756212646131,-1000.0,0.00039289,2]
[381449823,1756212646142,-178.90064946,0.00039289,2]
[381449825,1756212646152,-6755.4,0.000393,7]
[381449827,1756212646163,-8539.88733255,0.000393,14]
[381449858,1756212646447,-7732.14266745,0.000393,14]
[381449860,1756212646456,-157.694924,0.000393,30]
[381449862,1756212646466,-157.694924,0.000393,30]
[381449864,1756212646475,-157.694924,0.000393,30]
[381449866,1756212646485,-157.694924,0.000393,30]
[381449868,1756212646495,-301.85854109,0.00039373,2]
[381449870,1756212646507,-151.0,0.00039389,30]
[381449872,1756212646516,-2014.633144,0.00039389,30]
[381449874,1756212646526,-185.79721,0.00039389,30]
[381449876,1756212646536,-185.79721,0.00039389,30]
[381449878,1756212646545,-185.79721,0.00039389,30]
[381449880,1756212646555,-185.797202,0.00039389,30]
[381449882,1756212646564,-2434.74389024,0.00039389,3]
[381449884,1756212646574,-2524.82941417,0.00039389,3]
[381449886,1756212646583,-2748.52835909,0.00039389,3]
[381449888,1756212646592,-151.37707569,0.00039389,3]
[381449890,1756212646602,-1152.0,0.00039391,5]
[381449892,1756212646612,-160.0,0.00039392,4]
[381449894,1756212646621,-151.0,0.00039399,30]
[381449896,1756212646630,-151.0,0.00039399,30]
[381449898,1756212646640,-151.0,0.00039399,30]